{"text_format":"1","workbook":"xlsx","n_sheets":2,"sheets":["Planning","Jours fériés"],"not_rendered":{"charts":0,"images":0,"macros":1,"external_links":0,"defined_names":0,"comments":0,"pivot_tables":0},"unopened":[],"bounds":{"document_bytes":16777216,"sheet_cells":100000,"rows_first":2000,"rows_last":500,"rows_between":2000,"halvings":0,"cell_chars":16384,"cell_head_chars":4096},"cells_cut":0,"cells_raw":0,"read":"whole","date_system":"1900"}

{"sheet":"Planning","index":0,"n_rows":20,"n_cols":45,"rows_kept":20,"cut":false,"hidden":false,"merged":[[4,0,4,2],[9,1,13,1],[14,1,16,1],[17,1,19,1],[6,1,7,1]]}
[null,null,5,null,null,null,null,null,null,null,null,null,null,null,null,null,null,null,null,null,null,null,null,null,null,null,null,null,null,null,null,null,null,null,null,null,null,null,null,null,null,null,null,"Janvier",2019]
[null,null,1,null,{"$f":"DATE(C2+2018,C1,1)","v":"2019-05-01"},{"$f":"DATE(C2+2018,C1+1,1)-1","v":"2019-05-31"},null,null,null,null,null,null,null,null,null,null,null,null,null,null,null,null,null,null,null,null,null,null,null,null,null,null,null,null,null,null,null,null,null,null,null,null,null,"Février",2020]
[null,null,null,null,null,null,null,null,null,null,null,null,null,null,null,null,null,null,null,null,null,null,null,null,null,null,null,null,null,null,null,null,null,null,null,null,null,null,null,null,null,null,null,"Mars",2021]
[null,null,null,null,null,null,null,null,null,null,null,null,null,null,null,null,null,null,null,null,null,null,null,null,null,null,null,null,null,null,null,null,null,null,null,null,null,null,null,null,null,null,null,"Avril",2022]
[{"$f":"\"Période du \"&TEXT(E2,\"jj mmmmmmmmmmm aaaa\")&\" au \"&TEXT(F2,\"jj mmmmmmmmmmm aaaa\")","v":"Période du 01 mai 2019 au 31 mai 2019"},null,null,null,null,null,null,null,null,null,null,null,null,null,null,null,null,null,null,null,null,null,null,null,null,null,null,null,null,null,null,null,null,null,null,null,null,null,null,null,null,null,null,"Mai",2023]
[null,null," Personnel                         Date",{"$f":"E2","v":"2019-05-01"},{"$f":"D6+1","v":"2019-05-02"},{"$f":"E6+1","v":"2019-05-03"},"2019-05-04","2019-05-05","2019-05-06","2019-05-07","2019-05-08","2019-05-09","2019-05-10","2019-05-11","2019-05-12","2019-05-13","2019-05-14","2019-05-15","2019-05-16","2019-05-17","2019-05-18","2019-05-19","2019-05-20","2019-05-21","2019-05-22","2019-05-23","2019-05-24","2019-05-25","2019-05-26","2019-05-27","2019-05-28","2019-05-29","2019-05-30","2019-05-31",null,null,null,null,null,null,null,null,null,"Juin",2024]
[null,"Responsables","Salarié 1",null,null,null,null,null,null,null,null,null,null,null,null,null,null,null,null,null,null,null,null,null,null,null,null,null,null,null,null,null,null,null,null,null,null,null,null,null,null,null,null,"Juillet",2025]
[null,null,"Salarié 2",null,null,null,null,null,null,null,null,null,null,null,null,null,null,null,null,null,null,null,null,null,null,null,null,null,null,null,null,null,null,null,null,null,null,null,null,null,null,null,null,"Août",2026]
[null,"Bureau d'étude","Salarié 3",null,null,null,null,null,null,null,null,null,null,null,null,null,null,null,null,null,null,null,null,null,null,null,null,null,null,null,null,null,null,null,null,null,null,null,null,null,null,null,null,"Septembre",2027]
[null,"Equipe 1","Salarié 4",null,null,null,null,null,null,null,null,null,null,null,null,null,null,null,null,null,null,null,null,null,null,null,null,null,null,null,null,null,null,null,null,null,null,null,null,null,null,null,null,"Octobre",2028]
[null,null,"Salarié 5",null,null,null,null,null,null,null,null,null,null,null,null,null,null,null,null,null,null,null,null,null,null,null,null,null,null,null,null,null,null,null,null,null,null,null,null,null,null,null,null,"Novembre",2029]
[null,null,"Salarié 6",null,null,null,null,null,null,null,null,null,null,null,null,null,null,null,null,null,null,null,null,null,null,null,null,null,null,null,null,null,null,null,null,null,null,null,null,null,null,null,null,"Decembre",2030]
[null,null,"Salarié 7",null,null,null,null,null,null,null,null,null,null,null,null,null,null,null,null,null,null,null,null,null,null,null,null,null,null,null,null,null,null,null,null,null,null,null,null,null,null,null,null,"Decembre",2031]
[null,null,"Salarié 8"]
[null,"Equipe 2","Salarié 9"]
[null,null,"Salarié 10"]
[null,null,"Salarié 11"]
[null,"Equipe 3","Salarié 12"]
[null,null,"Salarié 13"]
[null,null,"Salarié 14"]

{"sheet":"Jours fériés","index":1,"n_rows":15,"n_cols":3,"rows_kept":15,"cut":false,"hidden":false,"merged":[]}
["Année",2019]
[]
["1er Janvier","2019-01-01","=DATE($B$1,1,1)"]
["Pâques","2019-04-21","=ROUND(DATE($B$1,4,MOD(234-11*MOD($B$1,19),30))/7,)*7-6"]
["Lundi de Pâques","2019-04-22",{"$f":"B4+1","v":43577}]
["1er Mai","2019-05-01","=DATE($B$1,5,1)"]
["2019-05-08","2019-05-08","=DATE($B$1,5,8)"]
["Ascenscion","2019-05-30",{"$f":"B4+39","v":43615}]
["Pentecôte","2019-06-09",{"$f":"B4+49","v":43625}]
["Lundi de la Pentecôte","2019-06-10",{"$f":"B4+50","v":43626}]
["2019-07-14","2019-07-17","=DATE($B$1,7,14)"]
["2019-08-15","2019-08-15","=DATE($B$1,8,15)"]
["1er Novembre","01/811/2019","=DATE($B$1,11,1)"]
["2019-11-11","2019-11-11","=DATE($B$1,11,11)"]
["2019-12-25","2019-12-25","=DATE($B$1,12,25)"]